lending/lending_fUSD_20240807
["ID","MTS","AMOUNT","RATE_DAILY","PERIOD"]
[334409982,1723053202511,309.93524977,7.347e-05,2]
[334409983,1723053205514,493.40828131,7.347e-05,2]
[334409984,1723053206378,2565.03638578,7.347e-05,2]
[334409985,1723053211139,484.99646143,8.905e-05,2]
[334409986,1723053211226,203.33375775,8.905e-05,2]
[334409987,1723053214270,265.33096073,8.905e-05,2]
[334409988,1723053217635,526.42821578,8.905e-05,2]
[334409989,1723053220680,1394.29525874,8.905e-05,2]
[334409990,1723053221740,221.89417331,8.905e-05,2]
[334409991,1723053221880,200.42850144,8.905e-05,2]
[334409992,1723053222531,189.41173915,8.905e-05,2]
[334409993,1723053231345,1138.64679831,8.905e-05,2]
[334409994,1723053232138,450.0,8.905e-05,2]
[334409995,1723053232391,270.46597516,8.905e-05,2]
[334409996,1723053234048,209.32526869,8.905e-05,2]
[334409997,1723053234343,255.09228319,8.905e-05,2]
[334409998,1723053238278,528.71768008,8.905e-05,2]
[334409999,1723053244041,227.61995131,8.905e-05,2]
[334410000,1723053247461,270.46597516,8.905e-05,2]
[334410001,1723053250160,227.67484022,8.905e-05,2]
[334410002,1723053256507,2565.03638578,8.905e-05,2]
[334410003,1723053258142,243.15259448,8.905e-05,2]
[334410004,1723053258231,259.20590974,8.905e-05,2]
[334410005,1723053264279,265.33096073,8.905e-05,2]
[334410006,1723053265164,484.99646143,8.905e-05,2]
[334410007,1723053270241,1297.73941226,8.905e-05,2]
[334410008,1723053270508,628.91396292,8.905e-05,2]
[334410009,1723053275090,522.06611583,8.905e-05,2]
[334410010,1723053507822,-300.0,9.999e-05,2]
[334410011,1723053507844,-578.55400603,0.0001,7]
[334410012,1723053507866,-71.44599397,0.0001,2]
[334410015,1723054197587,939.496,0.00025,60]
[334410018,1723054233578,-292.08380989,9.999e-05,2]
[334410019,1723054233590,-7.91619011,9.999e-05,2]
[334410020,1723054233600,-139.47801971,0.0001,2]
[334410021,1723054233611,-719.68870544,0.0001,2]
[334410022,1723054233621,-519.91345954,0.0001,2]
[334410023,1723054233630,-155.69036707,0.0001,2]
[334410024,1723054233640,-155.0,0.0001,2]
[334410025,1723054233649,-418.32792383,0.0001,2]
[334410026,1723054233659,-413.26976674,0.0001,2]
[334410027,1723054233668,-1656.75867267,0.0001,2]
[334410028,1723054233680,-908.55954973,0.0001,2]
[334410029,1723054233690,-5581.40887937,0.0001,2]
[334410030,1723054233703,-396.48017172,0.0001,2]
[334410031,1723054233818,-2204.70442374,0.0001,2]
[334410032,1723054233830,-1532.05470294,0.0001,2]
[334410033,1723054233842,-791.22200869,0.0001,2]
[334410037,1723054238407,-522.87689315,0.0001,2]
[334410044,1723054238528,-1169.55400002,0.0001,2]
[334410045,1723054238731,-3791.46814228,0.0001,2]
[334410046,1723054238743,-630.28655513,0.0001,2]
[334410047,1723054238758,-2759.29091662,0.0001,2]
[334410050,1723054240411,-369.49901506,0.0001,2]
[334410051,1723054240421,-200.42850144,0.00010794,2]
[334410052,1723054240431,-194.58815293,0.00010794,2]
[334410053,1723054240441,-365.80492378,0.00010794,2]
[334410054,1723054240663,-54.95726432,0.00010794,2]
[334410055,1723054240674,-270.46597516,0.00010794,2]
[334410056,1723054240685,-265.33096073,0.00010794,2]
[334410057,1723054240696,-443.60079979,0.00010794,2]
[334410058,1723054240709,-41.39566164,0.00010794,2]
[334410059,1723054240724,-357.30635393,0.00010794,2]
[334410060,1723054240739,-164.31632358,0.00010794,2]
[334410061,1723054240749,-221.38198904,0.00010794,2]
[334410062,1723054240758,-673.9205598,0.00010794,2]
[334410063,1723054240768,-522.06611583,0.00010794,2]
[334410064,1723054240778,-218.10512302,0.00011019,2]
[334410065,1723054240792,-192.88988327,0.00011019,2]
[334410066,1723054240801,-578.55400603,0.00011105,7]
[334410067,1723054240810,-3147.09195306,0.00011105,2]
[334410068,1723054240820,-2834.94827879,0.00011186,2]
[334410069,1723054240829,-410.99500629,0.00011427,2]
[334410070,1723054240839,-410.99500629,0.00011507,2]
[334410071,1723054240848,-1256.92584908,0.0001185,2]
[334410072,1723054240857,-410.99500629,0.00011982,2]
[334410073,1723054240866,-5000.0,0.00012,2]
[334410074,1723054240876,-410.99500629,0.00012091,2]
[334410075,1723054240885,-410.99500629,0.0001245,2]
[334410076,1723054240895,-410.99500629,0.00012622,2]
[334410077,1723054240904,-300.0,0.00013,2]
[334410078,1723054240914,-410.99500629,0.00013061,2]
[334410079,1723054240923,-410.99500629,0.00013319,2]
[334410080,1723054240933,-410.99500629,0.00013608,2]
[334410081,1723054240942,-410.99500629,0.00013864,2]
[334410082,1723054240952,-160.31,0.00013973,2]
[334410083,1723054240961,-410.99500629,0.00014067,2]
[334410084,1723054240976,-410.99500629,0.00014513,2]
[334410085,1723054240985,-225.49316527,0.00014688,2]
[334410086,1723054240996,-185.50184102,0.00014688,2]
[334410087,1723054241007,-410.99500629,0.00014816,2]
[334410089,1723054241017,-624.10934651,0.00015,2]
[334410091,1723054241026,-410.99500629,0.00015138,2]
[334410093,1723054241036,-410.99500629,0.00015566,2]
[334410094,1723054241045,-410.99500629,0.0001587,2]
[334410096,1723054241054,-2751.0,0.0001593,2]
[334410098,1723054241063,-2152.26,0.00015938,2]
[334410100,1723054241073,-500.0,0.00015947,2]
[334410102,1723054241082,-410.99500629,0.00016012,2]
[334410104,1723054241091,-5401.5400912,0.00016033,2]
[334410106,1723054241100,-200.0,0.00016056,2]
[334410108,1723054241109,-416.0,0.00016094,2]
[334410110,1723054241118,-250.0,0.00016125,2]
[334410112,1723054241128,-153.52,0.00016187,2]
[334410114,1723054241137,-410.99500629,0.00016243,2]
[334410115,1723054241146,-15521.01,0.0001625,2]
[334410116,1723054241155,-559.19,0.00016278,2]
[334410117,1723054241164,-1368.7,0.00016278,2]
[334410118,1723054241173,-410.99500629,0.00016461,2]
[334410119,1723054241183,-2774.99,0.000166,2]
[334410120,1723054241192,-584.0,0.00016602,2]
[334410121,1723054241201,-410.99500629,0.0001688,2]
[334410122,1723054241210,-1074.23899927,0.00016949,2]
[334410123,1723054241223,-5615.7,0.00016986,2]
[334410124,1723054241237,-628.3730026,0.00016999,2]
[334410125,1723054241246,-208.0,0.00017108,2]
[334410126,1723054241255,-1143.0,0.00017108,2]
[334410127,1723054241264,-171.315,0.00017108,2]
[334410128,1723054241273,-410.99500629,0.00017217,2]
[334410129,1723054241282,-1405.50443999,0.00017259,2]
[334410130,1723054241291,-410.99500629,0.00017373,2]
[334410131,1723054241300,-401.16988804,0.00017399,2]
[334410132,1723054241309,-375.0,0.000174,2]
[334410133,1723054241319,-600.50572099,0.00017458,2]
[334410134,1723054241328,-439.89968088,0.00017458,2]
[334410135,1723054241337,-309.16579736,0.00017458,2]
[334410136,1723054241346,-367.71679801,0.00017458,2]
[334410137,1723054241356,-309.16579736,0.00017458,2]
[334410138,1723054241369,-410.99500629,0.00017598,2]
[334410139,1723054241378,-155.0,0.00017608,2]
[334410140,1723054241387,-297.369235,0.00017636,2]
[334410141,1723054241397,-155.0,0.00017636,2]
[334410142,1723054241406,-347.54171027,0.00017739,2]
[334410143,1723054241415,-202.81555917,0.00017739,2]
[334410144,1723054241425,-1763.4763965,0.00017782,2]
[334410145,1723054241434,-410.99500629,0.00017813,2]
[334410146,1723054241445,-308.13974125,0.00018,2]
[334410147,1723054241457,-500.0,0.00018048,2]
[334410148,1723054241469,-416.0,0.00018106,2]
[334410149,1723054241479,-410.99500629,0.00018139,2]
[334410150,1723054241488,-364.03356845,0.00018176,2]
[334410151,1723054241497,-834.88,0.00018301,2]
[334410152,1723054241507,-841.54,0.00018301,2]
[334410153,1723054241515,-834.88,0.00018301,2]
[334410154,1723054241525,-834.88,0.00018301,2]
[334410155,1723054241534,-834.88,0.00018301,2]
[334410156,1723054241543,-834.88,0.00018301,2]
[334410157,1723054241552,-834.88,0.00018301,2]
[334410158,1723054241561,-834.88,0.00018301,2]
[334410159,1723054241571,-204.6,0.00018301,2]
[334410160,1723054241580,-410.99500629,0.00018394,2]
[334410161,1723054241589,-1738.76964944,0.00018499,2]
[334410162,1723054241598,-200.0,0.00018506,2]
[334410163,1723054241607,-200.0,0.00018506,2]
[334410164,1723054241616,-2000.0,0.00018506,2]
[334410165,1723054241625,-200.0,0.00018506,2]
[334410166,1723054241634,-1275.10393157,0.00018529,2]
[334410167,1723054241644,-844.56905072,0.00018547,2]
[334410168,1723054241652,-2442.6021425,0.000186,2]
[334410169,1723054241662,-500.0,0.00018603,2]
[334410170,1723054241671,-584.0,0.00018677,2]
[334410171,1723054241680,-200.0,0.00018691,2]
[334410172,1723054241691,-2000.0,0.00018691,2]
[334410173,1723054241700,-200.0,0.00018691,2]
[334410174,1723054241709,-500.0,0.00018746,2]
[334410175,1723054241721,-410.99500629,0.00018797,2]
[334410176,1723054241730,-200.0,0.00018878,2]
[334410177,1723054241740,-2000.0,0.00018878,2]
[334410178,1723054241749,-200.0,0.00018878,2]
[334410179,1723054241759,-500.0,0.00018883,2]
[334410180,1723054241768,-150.0,0.00018933,2]
[334410181,1723054241778,-150.0,0.00018935,2]
[334410182,1723054241787,-150.0,0.00018936,2]
[334410183,1723054241796,-150.0,0.00018936,2]
[334410184,1723054241805,-500.0,0.00018936,2]
[334410185,1723054241814,-150.0,0.0001894,2]
[334410186,1723054241823,-150.0,0.00018946,2]
[334410187,1723054241832,-150.0,0.00018949,2]
[334410188,1723054241842,-150.0,0.00018952,2]
[334410189,1723054241853,-150.0,0.00018953,2]
[334410190,1723054241862,-150.0,0.00018953,2]
[334410191,1723054241871,-150.0,0.00018956,2]
[334410192,1723054241880,-150.0,0.00018956,2]
[334410193,1723054241889,-500.0,0.0001896,2]
[334410194,1723054241898,-500.0,0.0001896,2]
[334410195,1723054241907,-150.0,0.00018961,2]
[334410196,1723054241917,-150.0,0.00018963,2]
[334410197,1723054241927,-150.0,0.00018963,2]
[334410198,1723054241936,-150.0,0.00018964,2]
[334410199,1723054241945,-150.0,0.00018969,2]
[334410200,1723054241954,-150.0,0.00018979,2]
[334410201,1723054241967,-150.0,0.0001898,2]
[334410202,1723054241976,-150.0,0.00018992,2]
[334410203,1723054241985,-150.0,0.00018993,2]
[334410204,1723054241994,-150.0,0.00018994,2]
[334410205,1723054242003,-150.0,0.00018997,2]
[334410206,1723054242012,-568.59804658,0.00019,2]
[334410207,1723054242022,-150.0,0.00019003,2]
[334410208,1723054242031,-150.0,0.00019007,2]
[334410209,1723054242041,-150.0,0.00019009,2]
[334410210,1723054242050,-150.0,0.0001901,2]
[334410211,1723054242062,-150.0,0.00019013,2]
[334410212,1723054242073,-150.0,0.00019013,2]
[334410213,1723054242082,-150.0,0.00019014,2]
[334410214,1723054242091,-1082.0,0.00019015,2]
[334410215,1723054242100,-150.0,0.00019015,2]
[334410216,1723054242110,-150.0,0.00019022,2]
[334410217,1723054242119,-150.0,0.00019023,2]
[334410218,1723054242128,-150.0,0.0001903,2]
[334410219,1723054242137,-150.0,0.0001903,2]
[334410220,1723054242146,-150.0,0.00019035,2]
[334410221,1723054242156,-150.0,0.00019035,2]
[334410222,1723054242165,-150.0,0.00019045,2]
[334410223,1723054242174,-150.0,0.00019054,2]
[334410224,1723054242183,-150.0,0.00019056,2]
[334410225,1723054242192,-150.0,0.00019059,2]
[334410226,1723054242202,-150.0,0.00019061,2]
[334410227,1723054242212,-150.0,0.00019062,2]
[334410228,1723054242224,-150.0,0.00019065,2]
[334410229,1723054242233,-150.0,0.00019065,2]
[334410230,1723054242242,-200.0,0.00019067,2]
[334410231,1723054242251,-2000.0,0.00019067,2]
[334410232,1723054242261,-200.0,0.00019067,2]
[334410233,1723054242270,-150.0,0.00019068,2]
[334410234,1723054242281,-150.0,0.00019069,2]
[334410235,1723054242291,-150.0,0.00019071,2]
[334410236,1723054242301,-150.0,0.00019073,2]
[334410237,1723054242310,-150.0,0.00019073,2]
[334410238,1723054242319,-150.0,0.00019076,2]
[334410239,1723054242329,-150.0,0.00019076,2]
[334410240,1723054242341,-150.0,0.00019077,2]
[334410241,1723054242351,-150.0,0.00019081,2]
[334410242,1723054242363,-500.0,0.00019082,2]
[334410243,1723054242377,-410.99500629,0.00019082,2]
[334410244,1723054242388,-150.0,0.00019084,2]
[334410245,1723054242398,-150.0,0.00019086,2]
[334410246,1723054242409,-150.0,0.00019089,2]
[334410247,1723054242421,-150.0,0.0001909,2]
[334410248,1723054242432,-150.0,0.00019095,2]
[334410249,1723054242445,-150.0,0.00019098,2]
[334410250,1723054242455,-150.0,0.00019098,2]
[334410251,1723054242466,-150.0,0.00019101,2]
[334410252,1723054242476,-150.0,0.00019104,2]
[334410253,1723054242485,-150.0,0.00019104,2]
[334410254,1723054242495,-150.0,0.00019105,2]
[334410255,1723054242504,-150.0,0.00019111,2]
[334410256,1723054242514,-500.0,0.00019115,2]
[334410257,1723054242524,-150.0,0.00019117,2]
[334410258,1723054242534,-150.0,0.00019119,2]
[334410259,1723054242544,-150.0,0.00019125,2]
[334410260,1723054242555,-150.0,0.00019126,2]
[334410261,1723054242565,-217.0,0.00019136,2]
[334410262,1723054242575,-1301.2189,0.00019136,2]
[334410263,1723054242587,-150.0,0.00019139,2]
[334410264,1723054242597,-150.0,0.00019141,2]
[334410265,1723054242607,-150.0,0.00019143,2]
[334410266,1723054242618,-150.0,0.00019143,2]
[334410267,1723054242630,-150.0,0.00019145,2]
[334410268,1723054242641,-169.46887535,0.00019147,2]
[334410269,1723054242653,-150.0,0.00019159,2]
[334410270,1723054242665,-150.0,0.00019166,2]
[334410271,1723054242676,-150.0,0.00019169,2]
[334410272,1723054242688,-150.0,0.00019171,2]
[334410273,1723054242698,-160.52601118,0.00019173,2]
[334410274,1723054242709,-150.0,0.00019173,2]
[334410275,1723054242721,-150.0,0.00019181,2]
[334410276,1723054242732,-150.0,0.00019182,2]
[334410277,1723054242742,-150.0,0.00019184,2]
[334410278,1723054242752,-150.0,0.00019185,2]
[334410279,1723054242763,-150.0,0.00019185,2]
[334410280,1723054242774,-152.0,0.00019187,3]
[334410281,1723054242784,-150.0,0.00019189,2]
[334410282,1723054242796,-484.0,0.000192,2]
[334410283,1723054242807,-34692.92836011,0.00019226,4]
[334410284,1723054242821,-731.13308334,0.00019226,4]
[334410285,1723054242833,-470.73536654,0.00019226,4]
[334410286,1723054242845,-1825.68207,0.00019226,4]
[334410306,1723054244058,-712.04599,0.00016896,2]
[334410307,1723054244071,-362.19300927,0.00016896,2]
[334410308,1723054244082,-131.38093649,0.0001738,2]
[334410309,1723054244094,-269.78895155,0.0001738,2]
[334410310,1723054244104,-17225.85404858,0.00019226,4]
[334410311,1723054244117,-10105.05987561,0.00019226,4]
[334410312,1723054244134,-358.288175,0.00019226,4]
[334410313,1723054244147,-7294.96880747,0.00019226,4]
[334410314,1723054244160,-2334.22822235,0.00019226,4]
[334410315,1723054244170,-175.01273,0.00019236,2]
[334410316,1723054244180,-3227.0445102,0.00019236,2]
[334410320,1723054246493,-439.89968088,0.00017399,2]
[334410321,1723054246503,-5617.10012333,0.00019236,2]
[334410322,1723054246550,-5256.37160202,0.00019236,2]
[334410323,1723054246563,-300.56414751,0.00019236,2]
[334410324,1723054246591,-1385.817236,0.00019236,2]
[334410325,1723054396732,500.0,0.00024999,120]
[334410326,1723054820438,35855.43951,0.00025,60]
[334410327,1723055136046,5160.15,9.5e-05,2]
[334410345,1723055432386,-300.0,0.000107,3]
[334410347,1723055432395,-600.0,0.000108,3]
[334410349,1723055432405,-900.0,0.000109,3]
[334410351,1723055432414,-430.97657751,0.000109,2]
[334410353,1723055432423,-5209.96614304,0.00010997,2]
[334410355,1723055432435,-576.41012845,0.00010997,2]
[334410357,1723055432446,-6988.8008005,0.00010997,2]
[334410359,1723055432455,-150.0,0.00010999,2]
[334410361,1723055432464,-500.0,0.00010999,2]
[334410363,1723055432474,-569.71005825,0.00010999,2]
[334410365,1723055432483,-35247.10101243,0.00011,2]
[334410368,1723055432494,-746.44510063,0.00011,2]
[334410370,1723055432510,-1597.0276405,0.00011,2]
[334410373,1723055432521,-1650.99,0.00011,2]
[334410377,1723055432547,-280.56667432,0.00011,2]
[334410379,1723055432559,-2669.37803247,0.00011,2]
[334410381,1723055432570,-441.6210144,0.00011,2]
[334410382,1723055432590,-46496.65951031,0.00011,2]
[334410383,1723055432601,-2005.57355483,0.00011,2]
[334410384,1723055432612,-3378.75833065,0.00011,2]
[334410385,1723055432623,-6977.40689673,0.00011,2]
[334410386,1723055432634,-322.91174239,0.00011,2]
[334410387,1723055432645,-3641.40814063,0.00011,2]
[334410397,1723055437791,-12573.41437419,0.00011,2]
[334410398,1723055437804,-2348.40046312,0.00011,2]
[334410399,1723055437816,-450.95372915,0.00011,2]
[334410400,1723055437830,-345.81591044,0.00011,2]
[334410401,1723055437842,-843.82570912,0.00011,2]
[334410402,1723055437864,-843.27,0.00011,2]
[334410403,1723055438058,-6500.0,0.00011,2]
[334410404,1723055438070,-1275.72650534,0.00011,2]
[334410405,1723055438081,-1022.60529556,0.00011,2]
[334410406,1723055438093,-124996.13602363,0.00011,2]
[334410407,1723055438244,-648.34717038,0.00011,2]
[334410424,1723055439675,-681.58857478,0.00011,2]
[334410425,1723055440164,-32336.82594326,0.00011,2]
[334410426,1723055440175,-4356.89794299,0.00011,2]
[334410427,1723055440187,-4478.44625082,0.00011,2]
[334410428,1723055440197,-10625.59365678,0.00011,2]
[334410429,1723055440624,-1213.13686397,0.00011,2]
[334410430,1723055440635,-354.33584849,0.00011,2]
[334410431,1723055440647,-6618.563923,0.00011,2]
[334410437,1723055442527,-531.2423039,0.00011,2]
[334410438,1723055442538,-6928.61801071,0.00011,2]
[334410440,1723055442567,-3145.404275,0.00011,2]
[334410441,1723055442578,-687.06,0.00011,2]
[334410442,1723055442589,-335.545,0.00011,2]
[334410443,1723055442600,-94700.61639352,0.00011,2]
[334410445,1723055442610,-1966.49143172,0.00011,2]
[334410447,1723055442646,-11068.6,0.00011,2]
[334410448,1723055442657,-267.88380043,0.00011,2]
[334410449,1723055442688,-301.25385499,0.00011,2]
[334410458,1723055443021,-1745.585,0.00011,2]
[334410460,1723055443032,-1214.79818361,0.00011,2]
[334410462,1723055443044,-68166.51069546,0.00011,2]
[334410465,1723055443059,-2123.07399969,0.00011,2]
[334410467,1723055443070,-10477.9876383,0.00011,2]
[334410469,1723055443081,-33724.11572845,0.00011,2]
[334410471,1723055443092,-206326.95195321,0.00011,2]
[334410473,1723055443103,-446.25,0.00011,2]
[334410475,1723055443114,-2499.6238,0.00011,2]
[334410478,1723055443125,-514.96451937,0.00011,2]
[334410480,1723055443136,-1016.18242901,0.00011,2]
[334410482,1723055443147,-1456.83281338,0.00011,2]
[334410535,1723055445805,-310.91257197,0.00011,2]
[334410536,1723055445952,-4116.0002468,0.00011,2]
[334410537,1723055445963,-2051.43835072,0.00011,2]
[334410538,1723055446083,-817.32850703,0.00011,2]
[334410539,1723055446095,-769.67,0.00011,2]
[334410540,1723055446217,-450.0,0.00011,2]
[334410541,1723055446229,-282.71413383,0.00011,2]
[334410543,1723056359453,224.26100291,8.596e-05,2]
[334410544,1723056359480,406.30899709,8.596e-05,2]
[334410545,1723056415766,269.29781518,8.596e-05,2]
[334410546,1723056457831,227.67484022,8.596e-05,2]
[334410568,1723056631951,-451.92492773,0.00010083,2]
[334410569,1723056631971,-127.78507227,0.00010083,2]
[334410570,1723056631983,-216.65,0.0001033,2]
[334410571,1723056631992,-654.49,0.00010344,2]
[334410572,1723056632001,-309.50821429,0.00010419,2]
[334410573,1723056632010,-455.44312321,0.00010419,2]
[334410574,1723056632019,-155.48259423,0.00010506,2]
[334410575,1723056632029,-300.0,0.00010566,2]
[334410576,1723056632038,-528.38599601,0.00010567,2]
[334410577,1723056632051,-5030.14487227,0.00010567,2]
[334410579,1723056632062,-270.06906,0.00010567,2]
[334410581,1723056632075,-439.3842264,0.00010567,2]
[334410584,1723056632090,-5664.30891974,0.00010567,2]
[334410585,1723056632101,-749.01593241,0.00010567,2]
[334410586,1723056632112,-1339.29878654,0.00010567,2]
[334410587,1723056632125,-977.84602417,0.00010567,2]
[334410625,1723056639114,-3950.00618246,0.00010567,2]
[334410626,1723056639124,-250.0,0.0001066,2]
[334410627,1723056639136,-150.99,0.0001066,2]
[334410628,1723056639145,-1666.81,0.0001066,2]
[334410629,1723056639155,-1053.91,0.00010706,2]
[334410630,1723056639165,-3965.92,0.00010706,2]
[334410631,1723056639174,-586.84,0.00010706,2]
[334410632,1723056639184,-92.1999286,0.00010706,2]
[334410633,1723056639195,-276.11182152,0.00010706,2]
[334410634,1723056639207,-130.17824988,0.00010706,2]
[334410635,1723056639222,-182.96958512,0.00010755,2]
[334410636,1723056639234,-17.03041488,0.00010755,2]
[334410637,1723056639243,-750.4,0.0001076,2]
[334410638,1723056639253,-987.6533,0.000108,2]
[334410639,1723056639262,-955.7269,0.000108,2]
[334410640,1723056639272,-150.0,0.00010858,2]
[334410641,1723056639282,-630.57,0.00010859,2]
[334410642,1723056639291,-17991.65,0.00010859,2]
[334410643,1723056639301,-758.59968379,0.00010898,2]
[334410644,1723056639310,-64480.99342005,0.00010899,2]
[334410645,1723056639330,-1579.71446157,0.00010899,2]
[334410646,1723056639341,-1178.70504876,0.00010899,2]
[334410647,1723056639353,-16199.75206962,0.00010899,2]
[334410648,1723056639363,-387.87891975,0.00010899,2]
[334410649,1723056639372,-60870.4633,0.000109,2]
[334410650,1723056639382,-3520.9278,0.000109,2]
[334410651,1723056639391,-475.1075,0.000109,2]
[334410652,1723056639401,-3317.5461,0.000109,2]
[334410653,1723056639411,-3028.0524,0.000109,2]
[334410654,1723056639420,-150.99,0.000109,2]
[334410655,1723056639431,-171.85912976,0.000109,2]
[334410656,1723056639440,-216.14776883,0.000109,2]
[334410657,1723056639451,-167.16366305,0.000109,2]
[334410658,1723056639463,-150.0,0.00010959,2]
[334410659,1723056639472,-7014.23,0.00010959,2]
[334410660,1723056639482,-5803.54,0.00010959,2]
[334410661,1723056639491,-250.0,0.00010959,2]
[334410662,1723056639501,-893.38,0.00010959,2]
[334410663,1723056639510,-725.33169961,0.00010997,2]
[334410664,1723056639519,-389.50419194,0.00010997,2]
[334410665,1723056639528,-500.0,0.00010997,2]
[334410666,1723056639537,-519.40523966,0.00010997,2]
[334410667,1723056639547,-500.0,0.00010997,2]
[334410668,1723056639556,-725.33169961,0.00010997,2]
[334410669,1723056639566,-500.0,0.00010997,2]
[334410670,1723056639575,-725.33169961,0.00010997,2]
[334410672,1723056639585,-500.0,0.00010997,2]
[334410673,1723056639594,-500.0,0.00010997,2]
[334410674,1723056639603,-725.33169961,0.00010997,2]
[334410675,1723056639612,-500.0,0.00010997,2]
[334410676,1723056639621,-725.33169961,0.00010997,2]
[334410677,1723056639631,-183.23314245,0.00010997,2]
[334410678,1723056639640,-725.33169961,0.00010997,2]
[334410679,1723056639648,-500.0,0.00010997,2]
[334410680,1723056639658,-725.33169961,0.00010997,2]
[334410681,1723056639668,-500.0,0.00010997,2]
[334410682,1723056639677,-725.33169961,0.00010997,2]
[334410683,1723056639687,-500.0,0.00010997,2]
[334410684,1723056639696,-725.33169961,0.00010997,2]
[334410685,1723056639705,-500.0,0.00010997,2]
[334410686,1723056639718,-725.33169961,0.00010997,2]
[334410687,1723056639727,-500.0,0.00010997,2]
[334410688,1723056639736,-725.33169961,0.00010997,2]
[334410689,1723056639745,-500.0,0.00010997,2]
[334410690,1723056639754,-725.33169961,0.00010997,2]
[334410691,1723056639763,-500.0,0.00010997,2]
[334410692,1723056639773,-725.33169961,0.00010997,2]
[334410693,1723056639782,-500.0,0.00010997,2]
[334410694,1723056639791,-725.33169961,0.00010997,2]
[334410695,1723056639800,-500.0,0.00010997,2]
[334410696,1723056639809,-725.33169961,0.00010997,2]
[334410697,1723056639818,-500.0,0.00010997,2]
[334410698,1723056639827,-725.33169961,0.00010997,2]
[334410699,1723056639836,-725.33169961,0.00010997,2]
[334410700,1723056639845,-725.33169961,0.00010997,2]
[334410701,1723056639854,-500.0,0.00010997,2]
[334410702,1723056639863,-725.33169961,0.00010997,2]
[334410703,1723056639872,-500.0,0.00010997,2]
[334410704,1723056639881,-725.33169961,0.00010997,2]
[334410705,1723056639890,-500.0,0.00010997,2]
[334410706,1723056639899,-725.33169961,0.00010997,2]
[334410707,1723056639908,-500.0,0.00010997,2]
[334410708,1723056639918,-725.33169961,0.00010997,2]
[334410709,1723056639927,-500.0,0.00010997,2]
[334410711,1723056639936,-725.33169961,0.00010997,2]
[334410712,1723056639945,-500.0,0.00010997,2]
[334410713,1723056639954,-725.33169961,0.00010997,2]
[334410714,1723056639966,-725.33169961,0.00010997,2]
[334410715,1723056639975,-725.33169961,0.00010997,2]
[334410716,1723056639985,-189.19740649,0.00010997,2]
[334410717,1723056639994,-725.33169961,0.00010997,2]
[334410718,1723056640003,-500.0,0.00010997,2]
[334410719,1723056640012,-725.33169961,0.00010997,2]
[334410720,1723056640022,-725.33169961,0.00010997,2]
[334410721,1723056640031,-500.0,0.00010997,2]
[334410722,1723056640040,-725.33169961,0.00010997,2]
[334410723,1723056640050,-500.0,0.00010997,2]
[334410724,1723056640059,-725.33169961,0.00010997,2]
[334410725,1723056640068,-500.0,0.00010997,2]
[334410726,1723056640078,-725.33169961,0.00010997,2]
[334410727,1723056640087,-725.33169961,0.00010997,2]
[334410728,1723056640096,-500.0,0.00010997,2]
[334410729,1723056640106,-725.33169961,0.00010997,2]
[334410730,1723056640115,-500.0,0.00010997,2]
[334410731,1723056640125,-500.0,0.00010997,2]
[334410732,1723056640138,-500.0,0.00010997,2]
[334410733,1723056640147,-500.0,0.00010997,2]
[334410734,1723056640157,-725.33169961,0.00010997,2]
[334410735,1723056640168,-500.0,0.00010997,2]
[334410736,1723056640178,-725.33169961,0.00010997,2]
[334410737,1723056640188,-500.0,0.00010997,2]
[334410738,1723056640197,-725.33169961,0.00010997,2]
[334410739,1723056640207,-500.0,0.00010997,2]